[Event "Slovakia Chess Open 2024"]
[Site "Modra"]
[Date "2024.03.03"]
[Round "5.6"]
[White "Smetana, Peter"]
[Black "Hasala, Richard"]
[Result "1/2-1/2"]
[ECO "C47"]
[WhiteElo "1993"]
[BlackElo "1935"]
[Annotator "RC"]
[PlyCount "120"]
[EventDate "2024.02.29"]
[EventType "swiss"]
[EventCountry "SVK"]
[SourceTitle "playchess.com"]
[Source "ChessBase"]
[SourceQuality "1"]
[TimeControl "5400+30"]

1. e4 {[%emt 0:00:04]} e5 {[%emt 0:01:16]} 2. Nf3 {[%emt 0:00:07]} Nf6 {[%emt 0:00:04]} 3. Nc3 {[%emt 0:00:21]} Nc6 {[%emt 0:00:08]} 4. d4 {[%emt 0:00:06]} exd4 {[%emt 0:00:11]} 5. Nxd4 {[%emt 0:00:05]} Bb4 {[%emt 0:00:04]} 6. Nxc6 {[%emt 0:00:07]} bxc6 {[%emt 0:00:05]} 7. Bd3 {[%emt 0:00:05]} d5 {[%emt 0:00:51]} 8. exd5 {[%emt 0:00:04]} cxd5 {[%emt 0:00:06]} 9. O-O {[%emt 0:00:04]} O-O {[%emt 0:00:17]} 10. h3 {[%emt 0:00:09]} c6 {[%emt 0:00:33]} 11. Qf3 {[%emt 0:00:10]} h6 {[%emt 0:05:59]} 12. Bf4 {[%emt 0:00:37]} Bd6 {[%emt 0:01:08]} 13. Bxd6 {[%emt 0:00:08]} Qxd6 {[%emt 0:00:03]} 14. Qg3 {[%emt 0:00:45]} Qxg3 {[%emt 0:02:16]} 15. fxg3 {[%emt 0:00:07]} c5 {[%emt 0:02:13]} 16. b3 {[%emt 0:01:28]} Bb7 {[%emt 0:00:18]} 17. g4 {[%emt 0:08:51]} a6 {[%emt 0:12:33]} 18. Na4 {[%emt 0:07:35]} Rac8 {[%emt 0:00:25]} 19. Rf4 {[%emt 0:05:12]} Rfe8 {[%emt 0:07:07]} 20. Raf1 {[%emt 0:06:56]} Re7 {[%emt 0:01:53]} 21. Kf2 {[%emt 0:05:46]} Kf8 {[%emt 0:09:12]} 22. Re1 {[%emt 0:16:50]} Rxe1 {[%emt 0:15:23]} 23. Kxe1 {[%emt 0:00:15]} Ke7 {[%emt 0:02:48]} 24. Nb2 {[%emt 0:03:24]} Kd6 {[%emt 0:03:00]} 25. Kf2 {[%emt 0:01:38]} a5 {[%emt 0:01:43]} 26. Nd1 {[%emt 0:02:05]} Ke5 {[%emt 0:02:59]} 27. Rf5+ {[%emt 0:12:28]} Ke6 {[%emt 0:00:24]} 28. Rf4 {[%emt 0:05:22]} g6 {[%emt 0:00:17]} 29. Nb2 {[%emt 0:03:31]} Nd7 {[%emt 0:04:25]} 30. Bb5 {[%emt 0:02:34]} Bc6 {[%emt 0:08:17]} 31. Bxc6 {[%emt 0:01:02]} Rxc6 {[%emt 0:00:02]} 32. Ra4 {[%emt 0:00:16]} Ra6 {[%emt 0:00:11]} 33. Nd3 {[%emt 0:00:17]} Kd6 {[%emt 0:00:58]} 34. a3 {[%emt 0:00:52]} g5 {[%emt 0:12:38]} 35. b4 {[%emt 0:02:18]} c4 {[%emt 0:00:06]} 36. Nb2 {[%emt 0:00:29]} Nb8 {[%emt 0:03:23]} 37. Ke3 {[%emt 0:14:11]} axb4 {[%emt 0:00:37]} 38. axb4 {[%emt 0:00:07]} Rxa4 {[%emt 0:01:01]} 39. Nxa4 {[%emt 0:00:04]} Nc6 {[%emt 0:01:04]} 40. b5 {[%emt 0:02:44]} Na7 {[%emt 0:01:17]} 41. b6 {[%emt 0:00:13]} Nb5 {[%emt 0:00:05]} 42. c3 {[%emt 0:00:39]} Kc6 {[%emt 0:00:13]} 43. Kd2 {[%emt 0:00:34]} Nd6 {[%emt 0:00:13]} 44. Ke3 {[%emt 0:00:24]} Kb5 {[%emt 0:00:56]} 45. Kd4 {[%emt 0:00:54]} Kxa4 {[%emt 0:03:28]} 46. Kxd5 {[%emt 0:00:00]} Nb7 {[%emt 0:00:00]} 47. Kxc4 {[%emt 0:00:00]} Ka5 {[%emt 0:00:18]} 48. Kd5 {[%emt 0:00:19]} Kxb6 {[%emt 0:00:35]} 49. Ke5 {[%emt 0:00:07]} Nc5 {[%emt 0:01:22]} 50. Kf6 {[%emt 0:00:10]} Nd3 {[%emt 0:00:27]} 51. Kxf7 {[%emt 0:02:31]} Nf4 {[%emt 0:00:29]} 52. Kg7 {[%emt 0:00:08]} Nxg2 {[%emt 0:00:10]} 53. Kxh6 {[%emt 0:00:03]} Nf4 {[%emt 0:00:07]} 54. Kxg5 {[%emt 0:00:08]} Nxh3+ {[%emt 0:00:04]} 55. Kh4 {[%emt 0:00:18]} Ng1 {[%emt 0:01:01]} 56. Kg3 {[%emt 0:00:51]} Ne2+ {[%emt 0:00:07]} 57. Kf3 {[%emt 0:00:04]} Nxc3 {[%emt 0:00:08]} 58. g5 {[%emt 0:00:44]} Nd5 {[%emt 0:00:18]} 59. g6 {[%emt 0:00:08]} Ne7 {[%emt 0:00:05]} 60. g7 {[%emt 0:00:11]} Kc6 {[%emt 0:00:20]} 1/2-1/2

[Event "Slovakia Chess Open 2024"]
[Site "Modra"]
[Date "2024.03.03"]
[Round "5.7"]
[White "Bucor, Mark"]
[Black "Kukla, Tomas"]
[Result "1/2-1/2"]
[ECO "B78"]
[WhiteElo "1852"]
[BlackElo "1864"]
[Annotator "NA RC"]
[PlyCount "81"]
[EventDate "2024.02.29"]
[EventType "swiss"]
[EventCountry "SVK"]
[SourceTitle "playchess.com"]
[Source "ChessBase"]
[SourceQuality "1"]
[TimeControl "5400+30"]

1. e4 {[%emt 0:00:03]} c5 {[%emt 0:00:07]} 2. Nf3 {[%emt 0:00:06]} d6 {[%emt 0:00:08]} 3. d4 {[%emt 0:00:06]} cxd4 {[%emt 0:00:06]} 4. Nxd4 {[%emt 0:00:07]} Nf6 {[%emt 0:00:19]} 5. Nc3 {[%emt 0:00:08]} g6 {[%emt 0:00:16]} 6. Be3 {[%emt 0:00:27]} Bg7 {[%emt 0:00:18]} 7. Qd2 {[%emt 0:00:29]} O-O {[%emt 0:02:56]} 8. f3 {[%emt 0:00:23]} Nc6 {[%emt 0:00:20]} 9. O-O-O {[%emt 0:01:10]} Bd7 {[%emt 0:01:06]} 10. Bc4 {[%emt 0:02:24]} Rc8 {[%emt 0:00:12]} 11. Bb3 {[%emt 0:00:39]} Ne5 {[%emt 0:02:39]} 12. h4 {[%emt 0:01:30]} h5 {[%emt 0:00:12]} 13. Kb1 {[%emt 0:06:53]} Nc4 {[%emt 0:00:34]} 14. Bxc4 {[%emt 0:01:05]} Rxc4 {[%emt 0:00:09]} 15. b3 {[%emt 0:12:41]} Rc8 {[%emt 0:05:35]} 16. Nd5 {[%emt 0:12:37]} e6 {[%emt 0:08:10]} 17. Nxf6+ {[%emt 0:01:27]} Qxf6 {[%emt 0:04:09]} 18. g4 {[%emt 0:02:45]} Rc5 {[%emt 0:05:13]} 19. Bg5 {[%emt 0:11:47]} Qxd4 {[%emt 0:10:30]} 20. Qxd4 {[%emt 0:00:31]} Bxd4 {[%emt 0:00:06]} 21. Rxd4 {[%emt 0:00:08]} hxg4 {[%emt 0:02:50]} 22. fxg4 {[%emt 0:02:44]} e5 {[%emt 0:02:53]} 23. Rxd6 {[%emt 0:08:07]} Bxg4 {[%emt 0:01:02]} 24. Rg1 {[%emt 0:09:15]} Bf3 {[%emt 0:05:48]} 25. Rd7 {[%emt 0:02:32]} Bxe4 {[%emt 0:04:28]} 26. Bh6 {[%emt 0:03:36]} Rfc8 {[%emt 0:01:57]} 27. Rf1 {[%emt 0:00:59]} Rxc2 {[%emt 0:01:13]} 28. Ka1 {[%emt 0:00:24]} R2c7 {[%emt 0:13:37]} 29. Rfxf7 {[%emt 0:00:33]} Rxd7 {[%emt 0:00:08]} 30. Rxd7 {[%emt 0:00:08]} Re8 {[%emt 0:06:12]} 31. Bg5 {[%emt 0:02:10]} a6 {[%emt 0:02:32]} 32. Kb2 {[%emt 0:00:41]} Re6 {[%emt 0:01:17]} 33. Re7 {[%emt 0:00:41]} Rxe7 {[%emt 0:00:11]} 34. Bxe7 {[%emt 0:00:07]} Kf7 {[%emt 0:00:23]} 35. Bg5 {[%emt 0:00:49]} Ke6 {[%emt 0:00:17]} 36. Kc3 {[%emt 0:00:26]} Kd5 {[%emt 0:01:13]} 37. a4 {[%emt 0:01:22]} Bb1 {[%emt 0:01:32]} 38. b4 {[%emt 0:00:25]} b5 {[%emt 0:00:49]} 39. axb5 {[%emt 0:00:17]} axb5 {[%emt 0:00:06]} 40. Kd2 {[%emt 0:00:21]} Kc4 {[%emt 0:00:13]} 41. Be7 {[%emt 0:00:11]} 1/2-1/2

[Event "Slovakia Chess Open 2024"]
[Site "Modra"]
[Date "2024.03.03"]
[Round "5.8"]
[White "Loffay, Pavol"]
[Black "Pisarcik, Richard"]
[Result "1/2-1/2"]
[ECO "A07"]
[WhiteElo "1753"]
[BlackElo "1855"]
[Annotator "NA RC"]
[PlyCount "95"]
[EventDate "2024.02.29"]
[EventType "swiss"]
[EventCountry "SVK"]
[SourceTitle "playchess.com"]
[Source "ChessBase"]
[SourceQuality "1"]
[TimeControl "5400+30"]

1. d3 {[%emt 0:00:08]} d5 {[%emt 0:01:42]} 2. Nf3 {[%emt 0:00:11]} Nf6 {[%emt 0:00:18]} 3. g3 {[%emt 0:00:06]} g6 {[%emt 0:00:05]} 4. Bg2 {[%emt 0:00:06]} Bg7 {[%emt 0:00:09]} 5. O-O {[%emt 0:00:12]} Nbd7 {[%emt 0:00:25]} 6. c3 {[%emt 0:00:38]} e5 {[%emt 0:00:16]} 7. Qc2 {[%emt 0:02:01]} b6 {[%emt 0:04:40]} 8. Bg5 {[%emt 0:01:33]} O-O {[%emt 0:04:49]} 9. Nbd2 {[%emt 0:00:50]} Re8 {[%emt 0:01:44]} 10. Rfe1 {[%emt 0:01:35]} h6 {[%emt 0:00:20]} 11. Bxf6 {[%emt 0:00:07]} Nxf6 {[%emt 0:00:12]} 12. Rad1 {[%emt 0:01:39]} Bb7 {[%emt 0:07:00]} 13. e4 {[%emt 0:07:22]} Qd7 {[%emt 0:03:34]} 14. exd5 {[%emt 0:03:40]} Nxd5 {[%emt 0:05:44]} 15. Nc4 {[%emt 0:02:50]} f6 {[%emt 0:12:49]} 16. d4 {[%emt 0:09:38]} exd4 {[%emt 0:05:28]} 17. Nxd4 {[%emt 0:03:34]} Rxe1+ {[%emt 0:02:31]} 18. Rxe1 {[%emt 0:00:16]} Re8 {[%emt 0:01:16]} 19. Rxe8+ {[%emt 0:04:11]} Qxe8 {[%emt 0:00:07]} 20. Qd2 {[%emt 0:02:41]} b5 {[%emt 0:15:11]} 21. Ne3 {[%emt 0:04:31]} Nxe3 {[%emt 0:00:30]} 22. Bxb7 {[%emt 0:01:16]} Nc4 {[%emt 0:00:30]} 23. Qc2 {[%emt 0:05:03]} f5 {[%emt 0:08:36]} 24. Bc6 {[%emt 0:06:08]} Qe1+ {[%emt 0:01:52]} 25. Kg2 {[%emt 0:00:07]} a6 {[%emt 0:04:45]} 26. Bd5+ {[%emt 0:13:44]} Kh8 {[%emt 0:00:30]} 27. Bxc4 {[%emt 0:07:58]} bxc4 {[%emt 0:00:30]} 28. Qe2 {[%emt 0:02:29]} Qxe2 {[%emt 0:01:11]} 29. Nxe2 {[%emt 0:00:07]} Kg8 {[%emt 0:00:31]} 30. Nf4 {[%emt 0:03:16]} Kf7 {[%emt 0:05:43]} 31. Kf3 {[%emt 0:02:16]} c6 {[%emt 0:01:18]} 32. Ke3 {[%emt 0:02:06]} g5 {[%emt 0:01:22]} 33. Ne2 {[%emt 0:00:45]} c5 {[%emt 0:00:20]} 34. f4 {[%emt 0:02:50]} g4 {[%emt 0:01:27]} 35. Ng1 {[%emt 0:00:38]} Ke6 {[%emt 0:01:23]} 36. Ne2 {[%emt 0:00:53]} Kd5 {[%emt 0:00:28]} 37. a3 {[%emt 0:01:17]} Kc6 {[%emt 0:00:54]} 38. Nc1 {[%emt 0:00:30]} Bf6 {[%emt 0:00:10]} 39. Kd2 {[%emt 0:00:27]} Kb5 {[%emt 0:00:30]} 40. Ke3 {[%emt 0:01:54]} Ka4 {[%emt 0:00:31]} 41. Kd2 {[%emt 0:00:29]} a5 {[%emt 0:00:16]} 42. Kc2 {[%emt 0:00:25]} h5 {[%emt 0:00:14]} 43. Kd2 {[%emt 0:00:25]} Bg7 {[%emt 0:00:30]} 44. Kc2 {[%emt 0:00:22]} Bh6 {[%emt 0:00:12]} 45. Ne2 {[%emt 0:01:15]} Bf8 {[%emt 0:00:17]} 46. Nc1 {[%emt 0:00:14]} Bg7 {[%emt 0:00:08]} 47. Kd2 {[%emt 0:00:23]} Bh6 {[%emt 0:00:17]} 48. Kc2 {[%emt 0:00:14]} 1/2-1/2

[Event "Slovakia Chess Open 2024"]
[Site "Modra"]
[Date "2024.03.03"]
[Round "5.9"]
[White "Petrik, Matus"]
[Black "Zentko, Ladislav"]
[Result "1-0"]
[ECO "C30"]
[WhiteElo "1812"]
[BlackElo "1749"]
[Annotator "NA RC"]
[PlyCount "35"]
[EventDate "2024.02.29"]
[EventType "swiss"]
[EventCountry "SVK"]
[SourceTitle "playchess.com"]
[Source "ChessBase"]
[SourceQuality "1"]
[TimeControl "5400+30"]

1. e4 {[%emt 0:19:39]} e5 {[%emt 0:00:17]} 2. f4 {[%emt 0:00:04]} Bc5 {[%emt 0:00:45]} 3. Nf3 {[%emt 0:00:08]} d6 {[%emt 0:00:45]} 4. Bc4 {[%emt 0:00:52]} Nf6 {[%emt 0:03:13]} 5. d3 {[%emt 0:04:06]} Nc6 {[%emt 0:01:06]} 6. h3 {[%emt 0:01:44]} Be6 {[%emt 0:04:04]} 7. Bxe6 {[%emt 0:01:04]} fxe6 {[%emt 0:00:08]} 8. Nc3 {[%emt 0:00:25]} a6 {[%emt 0:03:07]} 9. fxe5 {[%emt 0:01:32]} dxe5 {[%emt 0:03:50]} 10. Bg5 {[%emt 0:00:34]} Qd6 {[%emt 0:01:53]} 11. Qd2 {[%emt 0:02:37]} Nd4 {[%emt 0:05:14]} 12. Rf1 {[%emt 0:02:02]} O-O-O {[%emt 0:04:16]} 13. O-O-O {[%emt 0:00:06]} Rhf8 {[%emt 0:08:24]} 14. Ne2 {[%emt 0:09:27]} Bb4 {[%emt 0:18:35]} 15. c3 {[%emt 0:06:57]} Nxf3 {[%emt 0:03:20]} 16. Rxf3 {[%emt 0:04:06]} Bc5 {[%emt 0:02:31]} 17. Rdf1 {[%emt 0:04:05]} Nxe4 {[%emt 0:09:42]} 18. dxe4 {[%emt 0:00:35]} 1-0

[Event "Slovakia Chess Open 2024"]
[Site "Modra"]
[Date "2024.03.03"]
[Round "5.10"]
[White "Pietrucha, Jaroslaw"]
[Black "Chojnacki, Kevin"]
[Result "1/2-1/2"]
[ECO "B02"]
[WhiteElo "1781"]
[BlackElo "1672"]
[Annotator "NA RC"]
[PlyCount "97"]
[EventDate "2024.02.29"]
[EventType "swiss"]
[EventCountry "SVK"]
[SourceTitle "playchess.com"]
[Source "ChessBase"]
[SourceQuality "1"]
[TimeControl "5400+30"]

1. e4 {[%emt 0:01:08]} Nf6 {[%emt 0:00:18]} 2. Nc3 {[%emt 0:01:41]} d5 {[%emt 0:00:27]} 3. exd5 {[%emt 0:00:54]} Nxd5 {[%emt 0:00:10]} 4. Nxd5 {[%emt 0:01:45]} Qxd5 {[%emt 0:00:06]} 5. d4 {[%emt 0:02:04]} Nc6 {[%emt 0:01:19]} 6. Be3 {[%emt 0:01:26]} Bf5 {[%emt 0:05:58]} 7. a3 {[%emt 0:01:59]} e6 {[%emt 0:06:17]} 8. Nf3 {[%emt 0:00:31]} Bg4 {[%emt 0:04:56]} 9. Be2 {[%emt 0:00:29]} O-O-O {[%emt 0:02:22]} 10. O-O {[%emt 0:01:10]} Bd6 {[%emt 0:08:13]} 11. Ng5 {[%emt 0:08:14]} Bxe2 {[%emt 0:02:32]} 12. Qxe2 {[%emt 0:01:01]} Qf5 {[%emt 0:05:41]} 13. Rfd1 {[%emt 0:10:09]} h6 {[%emt 0:02:13]} 14. Nf3 {[%emt 0:00:39]} g5 {[%emt 0:00:41]} 15. c4 {[%emt 0:01:12]} Be7 {[%emt 0:02:53]} 16. b4 {[%emt 0:03:25]} g4 {[%emt 0:02:43]} 17. Ne5 {[%emt 0:02:59]} Nxe5 {[%emt 0:02:16]} 18. dxe5 {[%emt 0:00:54]} Qxe5 {[%emt 0:03:06]} 19. Qxg4 {[%emt 0:06:47]} Bd6 {[%emt 0:01:47]} 20. g3 {[%emt 0:01:07]} Rdg8 {[%emt 0:05:02]} 21. Qf3 {[%emt 0:00:41]} Qf5 {[%emt 0:05:21]} 22. Qxf5 {[%emt 0:02:02]} exf5 {[%emt 0:00:03]} 23. Bd4 {[%emt 0:05:48]} Rh7 {[%emt 0:00:03]} 24. c5 {[%emt 0:01:48]} Bf8 {[%emt 0:01:11]} 25. Re1 {[%emt 0:01:21]} Bg7 {[%emt 0:02:06]} 26. Bxg7 {[%emt 0:01:34]} Rhxg7 {[%emt 0:00:13]} 27. Re5 {[%emt 0:01:01]} f4 {[%emt 0:00:53]} 28. Rd1 {[%emt 0:01:32]} fxg3 {[%emt 0:00:27]} 29. hxg3 {[%emt 0:00:29]} Rd8 {[%emt 0:01:19]} 30. Rde1 {[%emt 0:02:18]} f6 {[%emt 0:01:03]} 31. Re6 {[%emt 0:01:02]} Rf7 {[%emt 0:00:37]} 32. Kg2 {[%emt 0:01:01]} Rd3 {[%emt 0:01:31]} 33. Re8+ {[%emt 0:02:12]} Rd8 {[%emt 0:01:15]} 34. Rxd8+ {[%emt 0:05:29]} Kxd8 {[%emt 0:00:30]} 35. Rd1+ {[%emt 0:00:30]} Ke8 {[%emt 0:00:30]} 36. Rd5 {[%emt 0:00:30]} Re7 {[%emt 0:00:30]} 37. Kf3 {[%emt 0:02:34]} Kf7 {[%emt 0:03:19]} 38. Rd8 {[%emt 0:00:30]} c6 {[%emt 0:00:30]} 39. Kf4 {[%emt 0:00:30]} a6 {[%emt 0:00:30]} 40. f3 {[%emt 0:00:30]} h5 {[%emt 0:00:30]} 41. a4 {[%emt 0:00:30]} Kg7 {[%emt 0:00:39]} 42. Rd2 {[%emt 0:01:49]} Kf7 {[%emt 0:00:23]} 43. Kf5 {[%emt 0:00:31]} Re5+ {[%emt 0:00:07]} 44. Kf4 {[%emt 0:03:24]} Re7 {[%emt 0:00:24]} 45. a5 {[%emt 0:00:30]} Kg6 {[%emt 0:00:00]} 46. Rh2 {[%emt 0:03:46]} Re8 {[%emt 0:01:04]} 47. g4 {[%emt 0:01:06]} hxg4 {[%emt 0:00:16]} 48. Kxg4 {[%emt 0:02:19]} Kg7 {[%emt 0:30:16]} 49. Rh1 {[%emt 0:18:09]} 1/2-1/2

[Event "Slovakia Chess Open 2024"]
[Site "Modra"]
[Date "2024.03.03"]
[Round "5.11"]
[White "Smolka, Robert"]
[Black "Palka, Miroslav"]
[Result "1/2-1/2"]
[ECO "B72"]
[WhiteElo "1620"]
[BlackElo "1780"]
[Annotator "NA RC"]
[PlyCount "61"]
[EventDate "2024.02.29"]
[EventType "swiss"]
[EventCountry "SVK"]
[SourceTitle "playchess.com"]
[Source "ChessBase"]
[SourceQuality "1"]
[TimeControl "5400+30"]

1. e4 {[%emt 0:00:08]} c5 {[%emt 0:00:05]} 2. Nf3 {[%emt 0:00:18]} d6 {[%emt 0:00:21]} 3. d4 {[%emt 0:00:50]} cxd4 {[%emt 0:00:06]} 4. Nxd4 {[%emt 0:00:07]} Nf6 {[%emt 0:00:10]} 5. Bd3 {[%emt 0:01:48]} g6 {[%emt 0:00:27]} 6. Be3 {[%emt 0:04:29]} Bg7 {[%emt 0:00:11]} 7. Nc3 {[%emt 0:05:42]} O-O {[%emt 0:00:16]} 8. f3 {[%emt 0:03:23]} Nc6 {[%emt 0:00:06]} 9. Qd2 {[%emt 0:05:38]} Nxd4 {[%emt 0:00:42]} 10. Bxd4 {[%emt 0:00:23]} Be6 {[%emt 0:00:16]} 11. O-O {[%emt 0:05:26]} a6 {[%emt 0:01:22]} 12. a4 {[%emt 0:10:49]} Qa5 {[%emt 0:01:52]} 13. Be3 {[%emt 0:05:13]} Rfe8 {[%emt 0:01:42]} 14. b4 {[%emt 0:01:27]} Qc7 {[%emt 0:03:01]} 15. Bd4 {[%emt 0:07:41]} Bc4 {[%emt 0:03:36]} 16. Rac1 {[%emt 0:01:17]} Rac8 {[%emt 0:02:02]} 17. f4 {[%emt 0:12:47]} e5 {[%emt 0:04:25]} 18. Be3 {[%emt 0:05:07]} Ng4 {[%emt 0:00:56]} 19. f5 {[%emt 0:00:38]} Nxe3 {[%emt 0:00:47]} 20. Qxe3 {[%emt 0:00:17]} gxf5 {[%emt 0:09:57]} 21. Rxf5 {[%emt 0:01:04]} Be6 {[%emt 0:05:44]} 22. Nd5 {[%emt 0:01:44]} Bxd5 {[%emt 0:05:25]} 23. exd5 {[%emt 0:00:02]} e4 {[%emt 0:01:14]} 24. Bxe4 {[%emt 0:06:42]} Qc4 {[%emt 0:01:44]} 25. Rf4 {[%emt 0:00:50]} Bd4 {[%emt 0:00:14]} 26. Bxh7+ {[%emt 0:00:12]} Kxh7 {[%emt 0:00:41]} 27. Qxd4 {[%emt 0:00:39]} Qxd4+ {[%emt 0:00:45]} 28. Rxd4 {[%emt 0:00:03]} Rc3 {[%emt 0:01:46]} 29. Rf4 {[%emt 0:08:10]} Kg7 {[%emt 0:00:36]} 30. Rg4+ {[%emt 0:00:54]} Kf8 {[%emt 0:00:15]} 31. Rh4 {[%emt 0:00:52]} 1/2-1/2

[Event "Slovakia Chess Open 2024"]
[Site "Modra"]
[Date "2024.03.03"]
[Round "5.12"]
[White "Rozboril, Alex"]
[Black "Nosal, Tobias"]
[Result "1/2-1/2"]
[ECO "C01"]
[WhiteElo "1563"]
[BlackElo "1773"]
[Annotator "NA RC"]
[PlyCount "136"]
[EventDate "2024.02.29"]
[EventType "swiss"]
[EventCountry "SVK"]
[SourceTitle "playchess.com"]
[Source "ChessBase"]
[SourceQuality "1"]
[TimeControl "5400+30"]

1. e4 {[%emt 0:00:04]} e6 {[%emt 0:00:12]} 2. Nf3 {[%emt 0:01:18]} d5 {[%emt 0:00:19]} 3. exd5 {[%emt 0:00:52]} exd5 {[%emt 0:00:19]} 4. d4 {[%emt 0:00:41]} Nf6 {[%emt 0:01:03]} 5. Nc3 {[%emt 0:01:24]} c6 {[%emt 0:01:22]} 6. Bf4 {[%emt 0:03:29]} Bg4 {[%emt 0:03:06]} 7. Be2 {[%emt 0:01:16]} Bd6 {[%emt 0:02:06]} 8. Bg3 {[%emt 0:06:08]} O-O {[%emt 0:03:02]} 9. O-O {[%emt 0:00:41]} Bxg3 {[%emt 0:04:19]} 10. fxg3 {[%emt 0:00:21]} Nbd7 {[%emt 0:01:11]} 11. Qd2 {[%emt 0:10:29]} Qc7 {[%emt 0:06:48]} 12. Rae1 {[%emt 0:01:22]} Rae8 {[%emt 0:03:24]} 13. Bd3 {[%emt 0:04:12]} Qb6 {[%emt 0:06:49]} 14. Na4 {[%emt 0:02:24]} Qc7 {[%emt 0:03:03]} 15. Qb4 {[%emt 0:04:03]} b6 {[%emt 0:04:53]} 16. Qd2 {[%emt 0:15:06]} Bh5 {[%emt 0:07:11]} 17. b3 {[%emt 0:10:43]} Bg6 {[%emt 0:06:43]} 18. Nb2 {[%emt 0:02:58]} Ne4 {[%emt 0:03:59]} 19. Bxe4 {[%emt 0:01:38]} Bxe4 {[%emt 0:02:54]} 20. Ng5 {[%emt 0:04:30]} Nf6 {[%emt 0:03:37]} 21. c4 {[%emt 0:05:39]} Re7 {[%emt 0:09:00]} 22. Na4 {[%emt 0:12:43]} Rfe8 {[%emt 0:04:14]} 23. Nc3 {[%emt 0:01:00]} h6 {[%emt 0:05:29]} 24. Nh3 {[%emt 0:01:55]} Bh7 {[%emt 0:03:05]} 25. Rc1 {[%emt 0:01:36]} Ne4 {[%emt 0:01:45]} 26. Nxe4 {[%emt 0:01:08]} Bxe4 {[%emt 0:00:19]} 27. Nf2 {[%emt 0:00:59]} Qd7 {[%emt 0:01:31]} 28. Nxe4 {[%emt 0:02:19]} Rxe4 {[%emt 0:00:23]} 29. Rcd1 {[%emt 0:03:06]} Re2 {[%emt 0:03:00]} 30. Qd3 {[%emt 0:00:48]} Rxa2 {[%emt 0:03:07]} 31. Rde1 {[%emt 0:00:21]} dxc4 {[%emt 0:01:18]} 32. bxc4 {[%emt 0:00:23]} Rd8 {[%emt 0:00:51]} 33. Rf4 {[%emt 0:00:47]} Ra4 {[%emt 0:01:43]} 34. Ree4 {[%emt 0:00:27]} Qd6 {[%emt 0:01:37]} 35. h3 {[%emt 0:00:28]} Qb4 {[%emt 0:00:46]} 36. d5 {[%emt 0:00:20]} Qc5+ {[%emt 0:00:52]} 37. Kh2 {[%emt 0:00:40]} cxd5 {[%emt 0:00:28]} 38. cxd5 {[%emt 0:00:12]} Rxe4 {[%emt 0:00:42]} 39. Rxe4 {[%emt 0:00:04]} g6 {[%emt 0:01:35]} 40. Rd4 {[%emt 0:00:10]} b5 {[%emt 0:00:47]} 41. d6 {[%emt 0:00:20]} b4 {[%emt 0:00:49]} 42. d7 {[%emt 0:00:07]} Qe7 {[%emt 0:00:27]} 43. Rd5 {[%emt 0:01:48]} b3 {[%emt 0:01:05]} 44. Qxb3 {[%emt 0:00:18]} Rxd7 {[%emt 0:00:23]} 45. Qb8+ {[%emt 0:00:29]} Kg7 {[%emt 0:00:45]} 46. Rxd7 {[%emt 0:00:33]} Qxd7 {[%emt 0:00:05]} 47. Kh1 {[%emt 0:00:40]} a6 {[%emt 0:00:46]} 48. Kh2 {[%emt 0:00:11]} Qb5 {[%emt 0:00:36]} 49. Qd6 {[%emt 0:01:05]} a5 {[%emt 0:00:34]} 50. Qd4+ {[%emt 0:00:22]} Kh7 {[%emt 0:00:28]} 51. Qf6 {[%emt 0:00:16]} Qf5 {[%emt 0:00:33]} 52. Qd4 {[%emt 0:00:31]} h5 {[%emt 0:00:31]} 53. Qa4 {[%emt 0:00:33]} Kg7 {[%emt 0:00:19]} 54. Qd4+ {[%emt 0:00:14]} Qf6 {[%emt 0:00:15]} 55. Qa4 {[%emt 0:00:15]} Qe5 {[%emt 0:00:08]} 56. Kg1 {[%emt 0:00:52]} Qc5+ {[%emt 0:00:27]} 57. Kh2 {[%emt 0:00:11]} Qb4 {[%emt 0:01:04]} 58. Qa1+ {[%emt 0:00:10]} Kg8 {[%emt 0:00:30]} 59. Qf6 {[%emt 0:00:42]} a4 {[%emt 0:00:25]} 60. Qd8+ {[%emt 0:00:07]} Kh7 {[%emt 0:00:37]} 61. Qf6 {[%emt 0:00:26]} Qb3 {[%emt 0:00:28]} 62. g4 {[%emt 0:00:43]} Qd5 {[%emt 0:00:50]} 63. gxh5 {[%emt 0:00:22]} gxh5 {[%emt 0:00:31]} 64. Qf1 {[%emt 0:00:40]} a3 {[%emt 0:00:29]} 65. Qb1+ {[%emt 0:00:16]} Kg7 {[%emt 0:00:29]} 66. Qa1+ {[%emt 0:00:20]} f6 {[%emt 0:00:26]} 67. Qxa3 {[%emt 0:00:09]} Kg6 {[%emt 0:00:36]} 68. Qg3+ {[%emt 0:00:34]} Kh6 {[%emt 0:00:19]} 1/2-1/2

[Event "Slovakia Chess Open 2024"]
[Site "Modra"]
[Date "2024.03.03"]
[Round "5.13"]
[White "Li, Geng Hui"]
[Black "Hitka, Dominik"]
[Result "0-1"]
[ECO "A85"]
[WhiteElo "1555"]
[BlackElo "1709"]
[Annotator "NA RC"]
[PlyCount "42"]
[EventDate "2024.02.29"]
[EventType "swiss"]
[EventCountry "SVK"]
[SourceTitle "playchess.com"]
[Source "ChessBase"]
[SourceQuality "1"]
[TimeControl "5400+30"]

1. d4 {[%emt 0:00:10]} e6 {[%emt 0:00:10]} 2. c4 {[%emt 0:00:30]} f5 {[%emt 0:01:01]} 3. Nc3 {[%emt 0:00:10]} Nf6 {[%emt 0:00:07]} 4. a3 {[%emt 0:00:11]} Be7 {[%emt 0:00:18]} 5. Nf3 {[%emt 0:00:23]} O-O {[%emt 0:00:17]} 6. Qc2 {[%emt 0:00:48]} b6 {[%emt 0:00:30]} 7. Bf4 {[%emt 0:02:39]} Bb7 {[%emt 0:00:32]} 8. e3 {[%emt 0:02:01]} Ne4 {[%emt 0:00:14]} 9. Bd3 {[%emt 0:00:33]} Nxc3 {[%emt 0:00:16]} 10. Qxc3 {[%emt 0:00:10]} Bf6 {[%emt 0:00:37]} 11. Qb3 {[%emt 0:07:21]} a5 {[%emt 0:02:16]} 12. a4 {[%emt 0:00:28]} Na6 {[%emt 0:00:24]} 13. c5 {[%emt 0:07:48]} Bd5 {[%emt 0:01:27]} 14. Bc4 {[%emt 0:00:38]} Bxc4 {[%emt 0:01:58]} 15. Qxc4 {[%emt 0:00:06]} bxc5 {[%emt 0:00:40]} 16. dxc5 {[%emt 0:05:50]} Bxb2 {[%emt 0:01:58]} 17. Rd1 {[%emt 0:01:05]} Qe7 {[%emt 0:01:38]} 18. O-O {[%emt 0:08:31]} Qxc5 {[%emt 0:05:37]} 19. Qa2 {[%emt 0:03:11]} Bf6 {[%emt 0:06:01]} 20. Rxd7 {[%emt 0:00:34]} Rfe8 {[%emt 0:00:17]} 21. Rc1 {[%emt 0:01:16]} Qxc1+ {[%emt 0:00:36]} 0-1